fUSD/lending_fUSD_20260605
["ID","MTS","AMOUNT","RATE_DAILY","PERIOD"]
[424176446,1780627850000,-1480.41,0.00037808,2]
[424176438,1780627850000,-1480.41,0.00037808,2]
[424176441,1780627850000,-1480.41,0.00037808,2]
[424176443,1780627850000,-1480.41,0.00037808,2]
[424176444,1780627850000,-1480.41,0.00037808,2]
[424176447,1780627850000,-1480.41,0.00037808,2]
[424176442,1780627850000,-1480.41,0.00037808,2]
[424176452,1780627850000,-1480.41,0.00037808,2]
[424176462,1780627850000,-835.89,0.00037808,2]
[424176460,1780627850000,-1480.41,0.00037808,2]
[424176453,1780627850000,-1480.41,0.00037808,2]
[424176456,1780627850000,-1480.41,0.00037808,2]
[424176437,1780627850000,-200.0,0.000378,10]
[424176445,1780627850000,-1480.41,0.00037808,2]
[424176436,1780627850000,-163.0,0.000378,7]
[424176424,1780627850000,-250.0,0.00037784,2]
[424176426,1780627850000,-250.0,0.00037784,2]
[424176397,1780627850000,-150.63,0.00037461,60]
[424176398,1780627850000,-1592.0,0.00037487,11]
[424176401,1780627850000,-150.63,0.00037561,60]
[424176399,1780627850000,-3549.47393083,0.000375,120]
[424176404,1780627850000,-1592.0,0.00037585,11]
[424176400,1780627850000,-166.79713857,0.00037558,2]
[424176403,1780627850000,-164.0,0.00037576,11]
[424176408,1780627850000,-500.0,0.00037624,120]
[424176406,1780627850000,-2321.0,0.00037589,11]
[424176407,1780627850000,-1592.0,0.00037614,11]
[424176410,1780627850000,-208.84,0.0003765,78]
[424176405,1780627850000,-1609.0,0.00037585,11]
[424176411,1780627850000,-166.79713857,0.00037658,2]
[424176430,1780627850000,-775.51,0.000378,2]
[424176409,1780627850000,-500.0,0.00037648,120]
[424176451,1780627850000,-1480.41,0.00037808,2]
[424176412,1780627850000,-150.63,0.00037661,60]
[424176423,1780627850000,-9061.52280968,0.00037784,2]
[424176415,1780627850000,-150.63,0.00037761,60]
[424176414,1780627850000,-166.79713857,0.00037758,2]
[424176417,1780627850000,-500.0,0.0003777,2]
[424176421,1780627850000,-150.0,0.00037778,120]
[424176419,1780627850000,-164.0,0.00037776,11]
[424176420,1780627850000,-158.69337599,0.00037778,120]
[424176416,1780627850000,-4836.7,0.00037765,2]
[424176418,1780627850000,-1000.0,0.0003777,2]
[424176422,1780627850000,-150.0,0.00037778,120]
[424176425,1780627850000,-250.0,0.00037784,2]
[424176413,1780627850000,-150.0,0.00037694,2]
[424176458,1780627850000,-1480.41,0.00037808,2]
[424176402,1780627850000,-159.20318347,0.00037562,30]
[424176457,1780627850000,-1480.41,0.00037808,2]
[424176490,1780627850000,-500.0,0.00037808,2]
[424176494,1780627850000,-500.0,0.00037808,2]
[424176492,1780627850000,-500.0,0.00037808,2]
[424176495,1780627850000,-500.0,0.00037808,2]
[424176497,1780627850000,-500.0,0.00037808,2]
[424176496,1780627850000,-500.0,0.00037808,2]
[424176498,1780627850000,-500.0,0.00037808,2]
[424176500,1780627850000,-500.0,0.00037808,2]
[424176502,1780627850000,-500.0,0.00037808,2]
[424176504,1780627850000,-500.0,0.00037808,2]
[424176503,1780627850000,-500.0,0.00037808,2]
[424176501,1780627850000,-500.0,0.00037808,2]
[424176505,1780627850000,-500.0,0.00037808,2]
[424176507,1780627850000,-505.05411648,0.00037808,2]
[424176506,1780627850000,-500.0,0.00037808,2]
[424176508,1780627850000,-500.0,0.00037808,2]
[424176509,1780627850000,-500.0,0.00037808,2]
[424176511,1780627850000,-2000.0,0.0003783,30]
[424176510,1780627850000,-297.39605398,0.00037808,2]
[424176518,1780627850000,-504.0,0.00037863,13]
[424176519,1780627850000,-500.0,0.0003787,2]
[424176520,1780627850000,-1000.0,0.0003787,2]
[424176513,1780627850000,-12652.10239092,0.0003783,2]
[424176512,1780627850000,-425.26,0.0003783,30]
[424176515,1780627850000,-166.79713857,0.00037858,2]
[424176516,1780627850000,-274.89,0.00037859,120]
[424176517,1780627850000,-150.63,0.00037861,60]
[424176493,1780627850000,-500.0,0.00037808,2]
[424176499,1780627850000,-500.0,0.00037808,2]
[424176514,1780627850000,-735.5978102,0.00037836,10]
[424176491,1780627850000,-500.0,0.00037808,2]
[424176488,1780627850000,-500.0,0.00037808,2]
[424176455,1780627850000,-1480.41,0.00037808,2]
[424176461,1780627850000,-1480.42909483,0.00037808,2]
[424176464,1780627850000,-835.89,0.00037808,2]
[424176474,1780627850000,-835.89,0.00037808,2]
[424176465,1780627850000,-835.89,0.00037808,2]
[424176463,1780627850000,-835.89,0.00037808,2]
[424176467,1780627850000,-835.89,0.00037808,2]
[424176468,1780627850000,-835.89,0.00037808,2]
[424176469,1780627850000,-835.89,0.00037808,2]
[424176473,1780627850000,-835.89,0.00037808,2]
[424176470,1780627850000,-835.89,0.00037808,2]
[424176466,1780627850000,-835.89,0.00037808,2]
[424176472,1780627850000,-835.89,0.00037808,2]
[424176454,1780627850000,-1480.41,0.00037808,2]
[424176486,1780627850000,-500.0,0.00037808,2]
[424176471,1780627850000,-835.89,0.00037808,2]
[424176485,1780627850000,-835.9786145,0.00037808,2]
[424176483,1780627850000,-835.89,0.00037808,2]
[424176482,1780627850000,-835.89,0.00037808,2]
[424176480,1780627850000,-835.89,0.00037808,2]
[424176478,1780627850000,-835.89,0.00037808,2]
[424176479,1780627850000,-835.89,0.00037808,2]
[424176481,1780627850000,-835.89,0.00037808,2]
[424176487,1780627850000,-500.0,0.00037808,2]
[424176484,1780627850000,-835.89,0.00037808,2]
[424176476,1780627850000,-835.89,0.00037808,2]
[424176489,1780627850000,-576.26566435,0.00037808,2]
[424176475,1780627850000,-835.89,0.00037808,2]
[424176477,1780627850000,-835.89,0.00037808,2]
[424176552,1780627851000,-150.63,0.00037961,60]
[424176551,1780627851000,-166.79713857,0.00037958,2]
[424176550,1780627851000,-25000.0,0.00037954,10]
[424176553,1780627851000,-25000.0,0.00037963,10]
[424176556,1780627851000,-2321.0,0.00037972,11]
[424176554,1780627851000,-25000.0,0.00037971,10]
[424176557,1780627851000,-25000.0,0.0003798,10]
[424176558,1780627851000,-25000.0,0.00037989,10]
[424176560,1780627851000,-25000.0,0.00037998,10]
[424176559,1780627851000,-25000.0,0.00037992,10]
[424176555,1780627851000,-2321.0,0.00037972,11]
[424176562,1780627851000,-753.0,0.00038,30]
[424176561,1780627851000,-175133.03,0.00038,2]
[424176563,1780627851000,-753.0,0.00038,30]
[424176565,1780627851000,-753.0,0.00038,30]
[424176566,1780627851000,-753.0,0.00038,30]
[424176549,1780627851000,-2339.0,0.00037953,11]
[424176567,1780627851000,-753.0,0.00038,30]
[424176570,1780627851000,-753.0,0.00038,30]
[424176569,1780627851000,-753.0,0.00038,30]
[424176568,1780627851000,-753.0,0.00038,30]
[424176571,1780627851000,-753.0,0.00038,30]
[424176572,1780627851000,-753.0,0.00038,30]
[424176573,1780627851000,-753.0,0.00038,30]
[424176564,1780627851000,-753.0,0.00038,30]
[424176547,1780627851000,-2471.63944742,0.00037945,30]
[424176543,1780627851000,-3000.0,0.00037945,30]
[424176546,1780627851000,-3000.0,0.00037945,30]
[424176576,1780627851000,-753.0,0.00038,30]
[424176523,1780627851000,-600.0,0.000379,13]
[424176524,1780627851000,-25000.0,0.00037919,10]
[424176522,1780627851000,-300.0,0.000379,10]
[424176521,1780627851000,-175133.03,0.000379,2]
[424176525,1780627851000,-1592.0,0.00037926,11]
[424176534,1780627851000,-3000.0,0.00037945,30]
[424176536,1780627851000,-3000.0,0.00037945,30]
[424176526,1780627851000,-25000.0,0.00037927,10]
[424176535,1780627851000,-3000.0,0.00037945,30]
[424176533,1780627851000,-3000.0,0.00037945,30]
[424176539,1780627851000,-3000.0,0.00037945,30]
[424176537,1780627851000,-3000.0,0.00037945,30]
[424176528,1780627851000,-1592.0,0.00037941,11]
[424176532,1780627851000,-3000.0,0.00037945,30]
[424176529,1780627851000,-1592.0,0.00037941,11]
[424176531,1780627851000,-25000.0,0.00037945,10]
[424176538,1780627851000,-3000.0,0.00037945,30]
[424176541,1780627851000,-3000.0,0.00037945,30]
[424176542,1780627851000,-3000.0,0.00037945,30]
[424176540,1780627851000,-3000.0,0.00037945,30]
[424176544,1780627851000,-3000.0,0.00037945,30]
[424176545,1780627851000,-3000.0,0.00037945,30]
[424176548,1780627851000,-159.20318347,0.00037945,30]
[424176530,1780627851000,-2321.0,0.00037941,11]
[424176527,1780627851000,-25000.0,0.00037936,10]
[424176579,1780627851000,-753.0,0.00038,30]
[424176580,1780627851000,-753.0,0.00038,30]
[424176604,1780627851000,-753.0,0.00038,30]
[424176601,1780627851000,-753.0,0.00038,30]
[424176603,1780627851000,-753.0,0.00038,30]
[424176623,1780627851000,-305.61241067,0.00038,30]
[424176621,1780627851000,-753.0,0.00038,30]
[424176620,1780627851000,-753.0,0.00038,30]
[424176622,1780627851000,-753.0,0.00038,30]
[424176619,1780627851000,-753.0,0.00038,30]
[424176612,1780627851000,-753.0,0.00038,30]
[424176616,1780627851000,-753.0,0.00038,30]
[424176611,1780627851000,-753.0,0.00038,30]
[424176600,1780627851000,-753.0,0.00038,30]
[424176613,1780627851000,-753.0,0.00038,30]
[424176617,1780627851000,-753.0,0.00038,30]
[424176614,1780627851000,-753.0,0.00038,30]
[424176615,1780627851000,-753.0,0.00038,30]
[424176624,1780627851000,-182.0,0.00038,120]
[424176628,1780627851000,-186.0,0.00038,30]
[424176630,1780627851000,-151.0,0.00038,120]
[424176625,1780627851000,-1369.62890625,0.00038,2]
[424176629,1780627851000,-200.0,0.00038,15]
[424176626,1780627851000,-166.66227481,0.00038,120]
[424176627,1780627851000,-151.0,0.00038,60]
[424176578,1780627851000,-753.0,0.00038,30]
[424176610,1780627851000,-753.0,0.00038,30]
[424176606,1780627851000,-753.0,0.00038,30]
[424176618,1780627851000,-753.0,0.00038,30]
[424176605,1780627851000,-753.0,0.00038,30]
[424176602,1780627851000,-753.0,0.00038,30]
[424176575,1780627851000,-753.0,0.00038,30]
[424176577,1780627851000,-753.0,0.00038,30]
[424176574,1780627851000,-753.0,0.00038,30]
[424176583,1780627851000,-753.0,0.00038,30]
[424176584,1780627851000,-753.0,0.00038,30]
[424176582,1780627851000,-753.0,0.00038,30]
[424176585,1780627851000,-753.0,0.00038,30]
[424176587,1780627851000,-753.0,0.00038,30]
[424176597,1780627851000,-753.0,0.00038,30]
[424176586,1780627851000,-753.0,0.00038,30]
[424176589,1780627851000,-753.0,0.00038,30]
[424176581,1780627851000,-753.0,0.00038,30]
[424176588,1780627851000,-753.0,0.00038,30]
[424176590,1780627851000,-753.0,0.00038,30]
[424176609,1780627851000,-753.0,0.00038,30]
[424176599,1780627851000,-753.0,0.00038,30]
[424176598,1780627851000,-753.0,0.00038,30]
[424176607,1780627851000,-753.0,0.00038,30]
[424176596,1780627851000,-753.0,0.00038,30]
[424176591,1780627851000,-753.0,0.00038,30]
[424176608,1780627851000,-753.0,0.00038,30]
[424176595,1780627851000,-753.0,0.00038,30]
[424176593,1780627851000,-753.0,0.00038,30]
[424176592,1780627851000,-753.0,0.00038,30]
[424176594,1780627851000,-753.0,0.00038,30]
[424176675,1780627852000,-3305.3365191,0.00038307,30]
[424176663,1780627852000,-1592.0,0.00038215,11]
[424176664,1780627852000,-1592.0,0.00038216,11]
[424176670,1780627852000,-151.0,0.00038265,4]
[424176671,1780627852000,-2321.0,0.00038266,11]
[424176669,1780627852000,-164.0,0.00038254,11]
[424176668,1780627852000,-164.0,0.00038246,11]
[424176667,1780627852000,-164.0,0.00038229,11]
[424176673,1780627852000,-150.0,0.00038303,120]
[424176676,1780627852000,-906.5,0.00038324,30]
[424176672,1780627852000,-1592.0,0.00038292,11]
[424176662,1780627852000,-185.0,0.00038211,120]
[424176682,1780627852000,-16054.95,0.00038356,14]
[424176690,1780627852000,-182.0,0.000384,120]
[424176680,1780627852000,-5000.0,0.00038356,120]
[424176678,1780627852000,-5000.0,0.00038356,120]
[424176683,1780627852000,-961.46,0.00038356,120]
[424176677,1780627852000,-177.19523279,0.00038329,120]
[424176679,1780627852000,-1500.0,0.00038356,120]
[424176681,1780627852000,-521.97,0.00038356,7]
[424176684,1780627852000,-244.73616679,0.00038356,2]
[424176686,1780627852000,-231.81848119,0.00038366,7]
[424176685,1780627852000,-489.47233359,0.00038356,2]
[424176687,1780627852000,-280.0,0.0003838,120]
[424176665,1780627852000,-433.18,0.0003822,120]
[424176691,1780627852000,-172.0,0.00038411,120]
[424176689,1780627852000,-220.456662,0.000384,7]
[424176698,1780627852000,-240.06,0.000385,21]
[424176674,1780627852000,-150.0,0.00038303,120]
[424176666,1780627852000,-243.93,0.0003822,120]
[424176661,1780627852000,-152.21,0.00038197,14]
[424176654,1780627852000,-5000.0,0.00038174,2]
[424176699,1780627852000,-240.06,0.000385,21]
[424176635,1780627852000,-575.19,0.00038015,2]
[424176631,1780627852000,-25000.0,0.00038,10]
[424176632,1780627852000,-300.0,0.00038001,3]
[424176634,1780627852000,-25000.0,0.00038009,10]
[424176636,1780627852000,-25000.0,0.00038018,10]
[424176641,1780627852000,-2321.0,0.00038076,11]
[424176642,1780627852000,-2321.0,0.00038076,11]
[424176639,1780627852000,-500.0,0.0003807,2]
[424176640,1780627852000,-1000.0,0.0003807,2]
[424176637,1780627852000,-166.79713857,0.00038058,2]
[424176638,1780627852000,-150.63,0.00038061,60]
[424176644,1780627852000,-253.22717104,0.000381,33]
[424176659,1780627852000,-900.0,0.00038178,60]
[424176645,1780627852000,-160.0,0.000381,20]
[424176647,1780627852000,-215.77576141,0.000381,10]
[424176646,1780627852000,-200.0,0.000381,16]
[424176648,1780627852000,-763.9,0.00038125,30]
[424176650,1780627852000,-10000.0,0.00038157,2]
[424176649,1780627852000,-164.0,0.00038127,11]
[424176657,1780627852000,-250.0,0.00038174,2]
[424176660,1780627852000,-2381.5,0.00038197,14]
[424176658,1780627852000,-250.0,0.00038174,2]
[424176652,1780627852000,-150.75399034,0.00038161,60]
[424176651,1780627852000,-166.79713857,0.00038158,2]
[424176655,1780627852000,-5000.0,0.00038174,2]
[424176656,1780627852000,-250.0,0.00038174,2]
[424176653,1780627852000,-5000.0,0.00038174,2]
[424176643,1780627852000,-208.84,0.0003809,93]
[424176633,1780627852000,-25000.0,0.00038007,10]
[424176697,1780627852000,-160.0,0.000385,21]
[424176694,1780627852000,-1434.7885643,0.00038497,2]
[424176733,1780627852000,-5000.0,0.0003863,120]
[424176727,1780627852000,-5000.0,0.00038611,2]
[424176726,1780627852000,-5000.0,0.00038611,2]
[424176734,1780627852000,-211.66061129,0.0003863,2]
[424176728,1780627852000,-5000.0,0.00038611,2]
[424176729,1780627852000,-5000.0,0.00038611,2]
[424176730,1780627852000,-5000.0,0.00038611,2]
[424176732,1780627852000,-504.0,0.00038629,14]
[424176731,1780627852000,-181.41283117,0.00038611,2]
[424176737,1780627852000,-300.0,0.00038639,53]
[424176748,1780627852000,-300.0,0.00038639,53]
[424176741,1780627852000,-300.0,0.00038639,53]
[424176739,1780627852000,-300.0,0.00038639,53]
[424176724,1780627852000,-5000.0,0.00038611,2]
[424176738,1780627852000,-300.0,0.00038639,53]
[424176740,1780627852000,-300.0,0.00038639,53]
[424176742,1780627852000,-300.0,0.00038639,53]
[424176743,1780627852000,-300.0,0.00038639,53]
[424176745,1780627852000,-300.0,0.00038639,53]
[424176746,1780627852000,-300.0,0.00038639,53]
[424176747,1780627852000,-300.0,0.00038639,53]
[424176744,1780627852000,-300.0,0.00038639,53]
[424176751,1780627852000,-300.0,0.00038639,53]
[424176750,1780627852000,-300.0,0.00038639,53]
[424176752,1780627852000,-300.0,0.00038639,53]
[424176753,1780627852000,-300.0,0.00038639,53]
[424176755,1780627852000,-2867.9427,0.0003864,30]
[424176688,1780627852000,-20848.35706845,0.00038385,2]
[424176749,1780627852000,-300.0,0.00038639,53]
[424176736,1780627852000,-350.0,0.00038638,4]
[424176754,1780627852000,-314.27,0.00038639,53]
[424176725,1780627852000,-5000.0,0.00038611,2]
[424176693,1780627852000,-349.0,0.00038448,5]
[424176692,1780627852000,-1949.0,0.00038431,120]
[424176696,1780627852000,-166.50437971,0.000385,120]
[424176695,1780627852000,-1527.69334923,0.00038497,2]
[424176701,1780627852000,-208.84,0.0003852,105]
[424176711,1780627852000,-250.0,0.00038563,2]
[424176706,1780627852000,-1258.76,0.00038536,120]
[424176709,1780627852000,-5000.0,0.00038563,2]
[424176735,1780627852000,-423.32122257,0.0003863,2]
[424176703,1780627852000,-30428.29885533,0.00038536,7]
[424176702,1780627852000,-2095.10266271,0.00038534,2]
[424176710,1780627852000,-5000.0,0.00038563,2]
[424176700,1780627852000,-166.58356952,0.000385,60]
[424176708,1780627852000,-215.6546714,0.00038553,120]
[424176707,1780627852000,-1250.73,0.00038553,2]
[424176705,1780627852000,-2000.0,0.00038536,120]
[424176717,1780627852000,-1268.99,0.0003861,120]
[424176704,1780627852000,-1133.37,0.00038536,120]
[424176718,1780627852000,-2000.0,0.0003861,120]
[424176720,1780627852000,-1568.24155,0.0003861,104]
[424176716,1780627852000,-2000.0,0.000386,7]
[424176722,1780627852000,-5000.0,0.00038611,2]
[424176715,1780627852000,-219.896819,0.000386,7]
[424176719,1780627852000,-1369.21,0.0003861,120]
[424176712,1780627852000,-250.0,0.00038563,2]
[424176723,1780627852000,-5000.0,0.00038611,2]
[424176713,1780627852000,-16054.95,0.0003858,14]
[424176714,1780627852000,-220.456662,0.000386,30]
[424176721,1780627852000,-5000.0,0.00038611,2]
[424176796,1780627853000,-302.0,0.00038828,120]
[424176797,1780627853000,-240.0,0.00038828,120]
[424176793,1780627853000,-152.0,0.00038828,120]
[424176792,1780627853000,-1037.0,0.00038828,120]
[424176791,1780627853000,-1118.0,0.00038828,120]
[424176790,1780627853000,-215.0,0.00038828,120]
[424176788,1780627853000,-248.189265,0.00038828,120]
[424176795,1780627853000,-1454.0,0.00038828,120]
[424176794,1780627853000,-236.0,0.00038828,120]
[424176787,1780627853000,-1568.24156,0.0003881,106]
[424176789,1780627853000,-152.440014,0.00038828,2]
[424176798,1780627853000,-175.73675625,0.00038835,120]
[424176823,1780627853000,-151.0,0.00038836,120]
[424176801,1780627853000,-160.593445,0.00038836,120]
[424176803,1780627853000,-177.553819,0.00038836,7]
[424176802,1780627853000,-177.553819,0.00038836,7]
[424176810,1780627853000,-177.553819,0.00038836,7]
[424176807,1780627853000,-177.553819,0.00038836,7]
[424176805,1780627853000,-177.553819,0.00038836,7]
[424176809,1780627853000,-177.553819,0.00038836,7]
[424176800,1780627853000,-177.553819,0.00038836,7]
[424176806,1780627853000,-177.553819,0.00038836,7]
[424176808,1780627853000,-177.553819,0.00038836,7]
[424176804,1780627853000,-177.553819,0.00038836,7]
[424176812,1780627853000,-177.553819,0.00038836,7]
[424176784,1780627853000,-2225.306043,0.000388,22]
[424176799,1780627853000,-276.43618742,0.00038835,120]
[424176781,1780627853000,-160.141404,0.000388,22]
[424176768,1780627853000,-1568.24155,0.0003871,105]
[424176780,1780627853000,-48139.16876074,0.000388,102]
[424176818,1780627853000,-177.553819,0.00038836,7]
[424176762,1780627853000,-2000.0,0.00038681,13]
[424176761,1780627853000,-781.0,0.00038676,30]
[424176760,1780627853000,-2000.0,0.00038669,28]
[424176757,1780627853000,-8182.0,0.00038646,120]
[424176759,1780627853000,-8182.0,0.00038666,120]
[424176758,1780627853000,-8182.0,0.00038656,120]
[424176756,1780627853000,-2000.0,0.00038643,6]
[424176763,1780627853000,-2000.0,0.00038685,30]
[424176765,1780627853000,-2000.0,0.00038699,21]
[424176773,1780627853000,-2000.0,0.00038799,22]
[424176766,1780627853000,-152.95,0.000387,2]
[424176772,1780627853000,-30428.29885533,0.0003878,7]
[424176764,1780627853000,-200.0,0.00038687,20]
[424176774,1780627853000,-386.52401027,0.00038799,70]
[424176770,1780627853000,-416.93648071,0.00038748,120]
[424176771,1780627853000,-2000.0,0.00038766,15]
[424176767,1780627853000,-151.0,0.000387,120]
[424176769,1780627853000,-219.18244468,0.00038736,2]
[424176775,1780627853000,-1479.63722076,0.00038799,30]
[424176776,1780627853000,-30428.29885533,0.00038799,7]
[424176786,1780627853000,-16054.95,0.00038805,14]
[424176777,1780627853000,-219.896818,0.000388,30]
[424176779,1780627853000,-362.27352246,0.000388,7]
[424176778,1780627853000,-182.0,0.000388,120]
[424176785,1780627853000,-600.0,0.000388,14]
[424176783,1780627853000,-163.575674,0.000388,2]
[424176782,1780627853000,-160.658638,0.000388,22]
[424176815,1780627853000,-177.553819,0.00038836,7]
[424176822,1780627853000,-151.0,0.00038836,120]
[424176875,1780627853000,-1189.198637,0.00038836,120]
[424176840,1780627853000,-164.844063,0.00038836,120]
[424176842,1780627853000,-164.844063,0.00038836,120]
[424176861,1780627853000,-1189.19863,0.00038836,120]
[424176851,1780627853000,-1189.19863,0.00038836,120]
[424176850,1780627853000,-1189.19863,0.00038836,120]
[424176852,1780627853000,-1189.19863,0.00038836,120]
[424176854,1780627853000,-1189.19863,0.00038836,120]
[424176853,1780627853000,-1189.19863,0.00038836,120]
[424176855,1780627853000,-1189.19863,0.00038836,120]
[424176858,1780627853000,-1189.19863,0.00038836,120]
[424176857,1780627853000,-1189.19863,0.00038836,120]
[424176860,1780627853000,-1189.19863,0.00038836,120]
[424176856,1780627853000,-1189.19863,0.00038836,120]
[424176862,1780627853000,-1189.19863,0.00038836,120]
[424176864,1780627853000,-3962.057198,0.00038836,120]
[424176865,1780627853000,-1189.19863,0.00038836,120]
[424176872,1780627853000,-3962.057198,0.00038836,120]
[424176863,1780627853000,-1189.19863,0.00038836,120]
[424176866,1780627853000,-3962.057198,0.00038836,120]
[424176868,1780627853000,-3962.057198,0.00038836,120]
[424176869,1780627853000,-160.703618,0.00038836,30]
[424176867,1780627853000,-1189.19863,0.00038836,120]
[424176871,1780627853000,-1189.19863,0.00038836,120]
[424176870,1780627853000,-1189.19863,0.00038836,120]
[424176874,1780627853000,-3962.057198,0.00038836,120]
[424176873,1780627853000,-1189.19863,0.00038836,120]
[424176814,1780627853000,-177.553819,0.00038836,7]
[424176844,1780627853000,-164.844063,0.00038836,120]
[424176841,1780627853000,-164.844063,0.00038836,120]
[424176859,1780627853000,-1189.19863,0.00038836,120]
[424176848,1780627853000,-281.689614,0.00038836,120]
[424176846,1780627853000,-164.844068,0.00038836,120]
[424176816,1780627853000,-177.553819,0.00038836,7]
[424176820,1780627853000,-177.553819,0.00038836,7]
[424176813,1780627853000,-177.553819,0.00038836,7]
[424176817,1780627853000,-177.553819,0.00038836,7]
[424176819,1780627853000,-151.0,0.00038836,120]
[424176821,1780627853000,-177.553816,0.00038836,7]
[424176825,1780627853000,-151.0,0.00038836,120]
[424176826,1780627853000,-211.791225,0.00038836,120]
[424176824,1780627853000,-151.0,0.00038836,120]
[424176828,1780627853000,-164.844063,0.00038836,120]
[424176827,1780627853000,-164.844063,0.00038836,120]
[424176835,1780627853000,-164.844063,0.00038836,120]
[424176829,1780627853000,-164.844063,0.00038836,120]
[424176811,1780627853000,-177.553819,0.00038836,7]
[424176832,1780627853000,-164.844063,0.00038836,120]
[424176834,1780627853000,-164.844063,0.00038836,120]
[424176849,1780627853000,-466.61,0.00038836,2]
[424176847,1780627853000,-153.088833,0.00038836,120]
[424176838,1780627853000,-164.844063,0.00038836,120]
[424176843,1780627853000,-164.844063,0.00038836,120]
[424176837,1780627853000,-164.844063,0.00038836,120]
[424176845,1780627853000,-164.844063,0.00038836,120]
[424176836,1780627853000,-164.844063,0.00038836,120]
[424176830,1780627853000,-164.844063,0.00038836,120]
[424176833,1780627853000,-164.844063,0.00038836,120]
[424176831,1780627853000,-164.844063,0.00038836,120]
[424176839,1780627853000,-164.844063,0.00038836,120]
[424176916,1780627854000,-151.0,0.00038836,120]
[424176918,1780627854000,-151.0,0.00038836,60]
[424176915,1780627854000,-151.0,0.00038836,120]
[424176910,1780627854000,-322.125899,0.00038836,30]
[424176911,1780627854000,-322.125899,0.00038836,30]
[424176912,1780627854000,-322.125899,0.00038836,30]
[424176914,1780627854000,-322.125906,0.00038836,30]
[424176913,1780627854000,-322.125899,0.00038836,30]
[424176907,1780627854000,-322.125899,0.00038836,30]
[424176909,1780627854000,-322.125899,0.00038836,30]
[424176917,1780627854000,-157.848844,0.00038836,120]
[424176908,1780627854000,-322.125899,0.00038836,30]
[424176920,1780627854000,-151.0,0.00038836,120]
[424176928,1780627854000,-238.116691,0.00038836,120]
[424176932,1780627854000,-238.116691,0.00038836,120]
[424176930,1780627854000,-238.116691,0.00038836,120]
[424176931,1780627854000,-238.116691,0.00038836,120]
[424176923,1780627854000,-151.0,0.00038836,120]
[424176925,1780627854000,-185.901162,0.00038836,120]
[424176929,1780627854000,-238.116691,0.00038836,120]
[424176927,1780627854000,-238.116691,0.00038836,120]
[424176926,1780627854000,-238.116691,0.00038836,120]
[424176922,1780627854000,-151.0,0.00038836,120]
[424176921,1780627854000,-151.0,0.00038836,120]
[424176924,1780627854000,-151.0,0.00038836,120]
[424176904,1780627854000,-322.125899,0.00038836,30]
[424176919,1780627854000,-152.582099,0.00038836,60]
[424176897,1780627854000,-322.125899,0.00038836,30]
[424176933,1780627854000,-238.116691,0.00038836,120]
[424176898,1780627854000,-322.125899,0.00038836,30]
[424176876,1780627854000,-3962.057198,0.00038836,120]
[424176886,1780627854000,-3962.057198,0.00038836,120]
[424176895,1780627854000,-322.125899,0.00038836,30]
[424176884,1780627854000,-3962.057198,0.00038836,120]
[424176887,1780627854000,-3962.057198,0.00038836,120]